Cogmind - Beta 16 @@@ ROGUE MODE // 2025.10.25 @ 20:27:39 Player: Rocko1345 Result: Destroyed by Autobeam Turret with Autobeam Performance ------------- Evolutions (0) 0 Regions Visited (3) 600 Robots Destroyed (22) 110 Value Destroyed (496) 496 Prototype IDs (0) 0 Alien Tech Used (0) 0 Bonus (0) 0 TOTAL SCORE: 1206 Bonus ------- None Cogmind --------- Core Integrity 0/250 Matter 270/300 Energy 160/160 System Corruption 0% Temperature Cool (12) Movement Walking (120) Location -10/Subcaves Parts ------- > --- POWER (1) -------- Light Nuclear Core > --- PROPULSION (2) --- Aluminum Leg Aluminum Leg > --- UTILITY (2) ------ Small Storage Unit Signal Interpreter > --- WEAPON (2) ------- Grenade Launcher > --- INVENTORY (8) ---- Experimental Sensor Array Transport Network Coupler EM Pulse Gun Mining Laser Mining Laser Makeshift Sword Peak State ------------ > --- POWER ------------ Light Nuclear Core > --- PROPULSION ------- Aluminum Leg Aluminum Leg > --- UTILITY ---------- Small Storage Unit Signal Interpreter > --- WEAPON ----------- Makeshift Sword > --- INVENTORY -------- Experimental Sensor Array Transport Network Coupler EM Pulse Gun Grenade Launcher Mining Laser Mining Laser [Rating: 12] Favorites ----------- Power Ion Engine Engine Ion Engine Power Core Light Nuclear Core Propulsion Aluminum Leg Leg Aluminum Leg Wheel Compact Wheel Utility Small Storage Unit Storage Small Storage Unit Processor Signal Interpreter Weapon Makeshift Sword Energy Gun EM Pulse Gun Ballistic Gun Assault Rifle Launcher Grenade Launcher Slashing Weapon Makeshift Sword Build | -11 -10 -10 -10 ------- Run | Yrd Mat Min Sub Slots Evolved . | . . . . Power . | . . . . Propulsion . | . . . . Utility . | . . . . Weapon . | . . . . Parts Attached 13 | 6 1 5 1 Power 2 | 1 . 1 . Engine 1 | 1 . . . Core 1 | . . 1 . Reactor . | . . . . Propulsion 5 | 2 . 3 . Treads . | . . . . Leg 4 | 2 . 2 . Wheel 1 | . . 1 . Hover . | . . . . Flight . | . . . . Utility 2 | 1 1 . . Device . | . . . . Storage 1 | 1 . . . Processor 1 | . 1 . . Hackware . | . . . . Protection . | . . . . Artifact . | . . . . Weapon 4 | 2 . 1 1 Energy Gun 1 | 1 . . . Energy Cannon . | . . . . Ballistic Gun 1 | 1 . . . Ballistic Cannon . | . . . . Launcher 1 | . . . 1 Special Weapon . | . . . . Impact Weapon . | . . . . Slashing Weapon 1 | . . 1 . Piercing Weapon . | . . . . Special Melee Weapon . | . . . . Unidentified Prototypes . | . . . . Parts Lost 4 | . . 4 . Power 1 | . . 1 . Propulsion 2 | . . 2 . Utility . | . . . . Weapon 1 | . . 1 . Highest Loss Streak 4 | . . 4 . To Critical Strikes . | . . . . Average Backups 3 | . . 4 6 Power . | . . . . Propulsion . | . . . . Utility 1 | . . 1 2 Weapon 2 | . . 3 4 Tool/Special . | . . . . Unused Backups 5 | . 1 . 4 Power 1 | . 1 . . Propulsion . | . . . . Utility 2 | . . . 2 Weapon 2 | . . . 2 Tool/Special . | . . . . Average Slot Usage (%) 89 | . 96 87 85 Engine 7 | . 14 5 . Core 6 | . . 8 14 Leg 25 | . 28 25 28 Storage 14 | . 14 14 14 Processor 13 | . 10 14 14 Energy Gun 4 | . 14 1 . Ballistic Gun 6 | . 14 4 . Slashing Weapon 9 | . . 12 12 Peak Build Rating 12 | 6 7 12 12 Average Rating 9 | 3 6 10 11 On Entrance 6 | . 6 7 12 Avg Prop Armor Cover (%) 5 | . . 5 . Naked Turns . | . . . . Heaviest Build 14 | 14 14 14 13 Greatest Support 20 | 20 20 20 20 Greatest Overweight (x) 3 | . . 3 . Average Overweight (x) . | . . . . Largest Inventory Capacity 8 | 8 8 8 8 Average Capacity 7 | 7 8 8 8 Most Carried 6 | 1 3 6 6 Average Carried 3 | . . 4 6 Final Capacity 8 | 8 8 8 8 Final Carried 6 | . 3 6 6 Class Distribution -------------------- 100% | Mutant Dominant Class ---------------- Mutant | -10/Materials Mutant | -10/Mines Mutant | -10/Subcaves Resources | -11 -10 -10 -10 ----------- Run | Yrd Mat Min Sub Matter Collected 417 | 217 98 92 10 Remotely . | . . . . Salvage Created 748 | . 331 368 49 Parts 36 | . 21 12 3 Haulers Intercepted 1 | . 1 . . Recyclers Shooed 1 | . . 1 . Parts Field Recycled . | . . . . Retrieved Matter . | . . . . Parts Self-Destructed 4 | . . . 4 Prevented . | . . . . Parts Restored . | . . . . Kills | -11 -10 -10 -10 ------- Run | Yrd Mat Min Sub Combat Hostiles Destroyed 19 | . 10 6 3 Melee 9 | . . 6 3 Guns 10 | . 10 . . Classes Destroyed 4 | . 3 1 . Hauler 1 | . 1 . . Recycler 2 | . . 2 . Swarmer 9 | . 6 . 3 Grunt 10 | . 4 6 . Best Kill Streak 7 | . 7 2 3 Combat Bots Only 6 | . 6 2 3 Max Kills in Single Turn 2 | . 2 1 1 Gunslinging . | . . . . Exploded . | . . . . Melee 1 | . . 1 1 Uniques/NPCs Destroyed . | . . . . Combat | -11 -10 -10 -10 -------- Run | Yrd Mat Min Sub Hostile Shots Fired 107 | . 41 35 31 Missed 35 | . 14 6 15 Hits 72 | . 27 29 16 Projectile 72 | . 27 29 16 AOE 1 | . 1 . . Critical Strikes 3 | . 1 2 . Damage Taken 785 | . 305 375 105 Core 250 | . 57 154 39 Absorbed by Shields . | . . . . Core Remaining (%) 100 | 100 . . . Volleys Fired 32 | . 29 . 3 Largest 2 | . 2 . 1 Hottest 60 | . 60 . 30 Shots Fired 61 | . 58 . 3 Gun 58 | . 58 . . Cannon . | . . . . Launcher 3 | . . . 3 Special . | . . . . Kinetic 29 | . 29 . . Thermal . | . . . . Explosive 3 | . . . 3 Electromagnetic 29 | . 29 . . Robot Hit Streak 6 | . 6 . 3 Robot Miss Streak 5 | . 5 . . Penetration Max . | . . . . Secondary Targets 2 | . 2 . . Max Gunslinging Chain 1 | . 1 . . Shots Hit Robots 56 | . 26 25 5 Core Hits 26 | . 15 6 5 Critical Kills . | . . . . Critical Parts Destroyed . | . . . . Critical Strikes 1 | . . 1 . Sever 1 | . . 1 . Melee Attacks 39 | . . 34 5 Impact . | . . . . Slashing 39 | . . 34 5 Piercing . | . . . . Sneak Attacks 3 | . . 3 . Combat Hostiles . | . . . . Follow-up Attacks . | . . . . Damage Inflicted 1526 | . 344 1004 178 Guns 344 | . 344 . . Cannons . | . . . . Explosions 72 | . . . 72 Melee 1110 | . . 1004 106 Ramming . | . . . . Kinetic 145 | . 145 . . Thermal . | . . . . Explosive 72 | . . . 72 Electromagnetic 199 | . 199 . . Impact . | . . . . Slashing 1110 | . . 1004 106 Piercing . | . . . . Highest Corruption . | . . . . Average Corruption . | . . . . Corruption Purged . | . . . . Corruption Blocked . | . . . . Overload Shots . | . . . . Overflow Damage 139 | . . 139 . Projectiles . | . . . . Explosions . | . . . . Melee 139 | . . 139 . Knockbacks . | . . . . Impact . | . . . . Kinetic . | . . . . Secondary . | . . . . Self-Inflicted Damage . | . . . . Shots . | . . . . Rammed . | . . . . Targets Rammed . | . . . . Kicked . | . . . . Crushed . | . . . . Highest Temperature 39 | . 39 9 . Average Temperature 20 | . 20 9 . Received Heat Transfer 402 | . 96 246 60 Siege Activations . | . . . . Martial Activations . | . . . . Shielding Activations . | . . . . Robots Disrupted . | . . . . Combat Hostiles . | . . . . Robots Corrupted . | . . . . Combat Hostiles . | . . . . Parts Fried . | . . . . Impact Corruptions . | . . . . Robots Melted . | . . . . Combat Hostiles . | . . . . Parts Melted . | . . . . Heat Transferred . | . . . . Parts Sabotaged . | . . . . Parts Stolen . | . . . . Parts Stripped . | . . . . Power Chain Reactions . | . . . . Alert | -11 -10 -10 -10 ------- Run | Yrd Mat Min Sub Maximum Alert Level . | . . . . Low Security (%) 100 | 100 100 100 . Level 1 . | . . . . Level 2 . | . . . . Level 3 . | . . . . Level 4 . | . . . . Level 5 . | . . . . High Security . | . . . . Max Security . | . . . . Peak Influence 137 | . 137 45 . Initial 37 | . . 37 . Average 20 | . 56 9 . Influence Increases 576 | . 266 205 105 Destroy 0b10 Robot/C 380 | . 200 120 60 Destroy 0b10 Robot/NC 15 | . 5 10 . Destroy Leader 72 | . 42 30 . Successful Hack 19 | . 19 . . Lose Combat Pursuer 90 | . . 45 45 Influence Decreases 491 | . 169 302 20 Entered New Map 60 | . . 60 . Time Decay 411 | . 169 222 20 Lost Part 20 | . . 20 . Squads Dispatched 1 | . 1 . . Investigation . | . . . . Extermination . | . . . . Reinforcement 1 | . 1 . . Assault . | . . . . Garrison . | . . . . Intercept . | . . . . Searches Triggered . | . . . . Construction Impeded . | . . . . Haulers Reinforced . | . . . . Active Scanning Responses . | . . . . Cargo Convoy Interrupts . | . . . . Stealth | -11 -10 -10 -10 --------- Run | Yrd Mat Min Sub Distress Signals 1 | . 1 . . Communications Jammed . | . . . . Distress Signals . | . . . . Times Spotted 29 | . 13 9 7 Peak Tracking Total 5 | . 5 3 3 Tactical Retreats 4 | . . 3 1 Traps | -11 -10 -10 -10 ------- Run | Yrd Mat Min Sub Traps Triggered . | . . . . Indirectly . | . . . . Trap Hack Attempts . | . . . . Triggered . | . . . . Disarmed . | . . . . Reprogrammed . | . . . . Reused . | . . . . Traps Extracted . | . . . . Installed . | . . . . Triggered . | . . . . Machines | -11 -10 -10 -10 ---------- Run | Yrd Mat Min Sub Machines Disabled 2 | . . . 2 Max in Single Turn 2 | . . . 2 Machines Repaired . | . . . . Machines Dismantled . | . . . . Machines Sabotaged . | . . . . Overloaded Fab Kills . | . . . . Hacking | -11 -10 -10 -10 --------- Run | Yrd Mat Min Sub Machines Accessed 4 | . 4 . . Terminals 3 | . 3 . . Fabricators . | . . . . Repair Stations . | . . . . Recycling Units 1 | . 1 . . Scanalyzers . | . . . . Garrison Access . | . . . . Total Hacks 18 | . 18 . . Successful 11 | . 11 . . Failed 7 | . 7 . . Catastrophic 1 | . 1 . . Database Lockouts . | . . . . Manual 6 | . 6 . . Terminals 17 | . 17 . . Fabricators . | . . . . Repair Stations . | . . . . Recycling Units 1 | . 1 . . Scanalyzers . | . . . . Garrison Access . | . . . . Terminal Hacks 7 | . 7 . . Record 1 | . 1 . . Terminal Index 1 | . 1 . . Locate Traps 2 | . 2 . . Registered Components 1 | . 1 . . Zone Layout 2 | . 2 . . Fabricator Hacks . | . . . . Repair Station Hacks . | . . . . Recycling Unit Hacks 1 | . 1 . . Report Inventory 1 | . 1 . . Scanalyzer . | . . . . Garrison Access Hacks . | . . . . Unauthorized Hacks 3 | . 3 . . Terminals 3 | . 3 . . Botnet 3 | . 3 . . Fabricators . | . . . . Repair Stations . | . . . . Recycling Units . | . . . . Scanalyzers . | . . . . Garrison Access . | . . . . Data Cores Recovered . | . . . . Used . | . . . . Hacking Detections 2 | . 2 . . Full Trace Events . | . . . . Feedback Events . | . . . . Feedback Blocked . | . . . . Robot Schematics Acquired . | . . . . Robots Built . | . . . . Authchips . | . . . . Time . | . . . . Total Robot Build Rating . | . . . . Part Schematics Acquired . | . . . . Parts Built . | . . . . Authchips . | . . . . Time . | . . . . Total Part Build Rating . | . . . . Part Studies Acquired . | . . . . Parts Repaired . | . . . . Time . | . . . . Parts Recycled . | . . . . Recycled Matter . | . . . . Retrieved Matter . | . . . . Retrieved Components . | . . . . Parts Scanalyzed . | . . . . Part Schematics Acquired . | . . . . Parts Damaged . | . . . . Bothacking | -11 -10 -10 -10 ------------ Run | Yrd Mat Min Sub Used RIF Installer . | . . . . Robots Hacked . | . . . . Non-combat . | . . . . Combat . | . . . . Robot Hacks Applied . | . . . . Relay Couplers Released . | . . . . Fabnet Peak Effective % . | . . . . Robots Rewired . | . . . . Allies Hacked . | . . . . Hacks Repelled . | . . . . Allies | -11 -10 -10 -10 -------- Run | Yrd Mat Min Sub Total Allies . | . . . . Largest Group . | . . . . Highest-Rated Group . | . . . . Highest-Rated Ally . | . . . . Total Orders . | . . . . Ally Attacks . | . . . . Total Damage . | . . . . Kills . | . . . . Allies Corrupted . | . . . . Allies Melted . | . . . . Intel | -11 -10 -10 -10 ------- Run | Yrd Mat Min Sub Active Infowar (turns) . | . . . . Robot Analysis Total . | . . . . Derelict Logs Recovered 2 | . . 1 1 Drone Launches . | . . . . Drone Recoveries . | . . . . Exploration | -11 -10 -10 -10 ------------- Run | Yrd Mat Min Sub Turns Passed 1637 | 92 364 1119 62 Spaces Moved 1098 | 82 224 772 20 Core 69 | 21 . 48 . Treads . | . . . . Legs 1024 | 61 224 719 20 Wheels 5 | . . 5 . Hover . | . . . . Flight . | . . . . Fastest Speed 50 | 50 120 100 120 Average Speed 122 | 102 120 125 120 Slowest Speed 200 | 120 120 200 120 Overloaded Moves . | . . . . Propulsion Burnouts . | . . . . Robots Hopped . | . . . . Potential Cave-ins . | . . . . Cave-ins Triggered . | . . . . Exploration Rate (%) 37 | 4 41 102 2 Regions Visited 3 Branch Regions 2 Pre-discovered Areas 1 | . . . 1 Known Exits Taken 2 | . 1 1 . Unknown Exits Taken 1 | 1 . . . Scrap Searched 1 | . . 1 . Spaces Dug . | . . . . Terrain Destroyed 9 | . . . 9 Melee . | . . . . Projectile . | . . . . AOE 9 | . . . 9 Terrain Rammed . | . . . . Walls Destroyed . | . . . . Machines Disabled . | . . . . Actions | -11 -10 -10 -10 --------- Run | Yrd Mat Min Sub Total 1286 | 88 261 887 50 Wait 98 | . 3 74 21 Move 1095 | 81 223 771 20 Hop . | . . . . Pick Up 8 | 1 4 3 . Fast Attach 9 | 5 1 3 . Attach 1 | 1 . . . Detach . | . . . . Swap 3 | . . 2 1 Drop 1 | . 1 . . Fire 32 | . 29 . 3 Melee 39 | . . 34 5 Ram . | . . . . Kick . | . . . . Crush . | . . . . Escape Stasis . | . . . . Rewire . | . . . . Trap . | . . . . Miscellaneous . | . . . . Route ------- -11/Scrapyard -10/Materials -10/Mines (discovered 3 exits: *Mat x2 / *Sub) -10/Subcaves (discovered 1 exit: [*Rec]) History --------- Turn | Location | Event 9 | -11/Scrapyard | Discovered new exit (range 15) 93 | -11/Scrapyard | Entered Materials 239 | -10/Materials | Discovered new exit (range 13) 317 | -10/Materials | Build established: Mutant 455 | -10/Materials | Identified exit to Mines 457 | -10/Materials | Entered Mines 487 | -10/Mines | A weapon hastily lodged in a ceiling crevice suddenly fell to the ground 522 | -10/Mines | Discovered new exit (range 9) 556 | -10/Mines | Identified exit to Materials 633 | -10/Mines | Discovered exit to Materials (range 15) 837 | -10/Mines | Core integrity fell below 50% 892 | -10/Mines | Lost 4 parts (1p2n1w) 1033 | -10/Mines | YI-UF0 nonchalantly dropped a Grenade Launcher on the ground 1061 | -10/Mines | Found a damaged Exp. Sensor Array with a note attached 1063 | -10/Mines | Found Prototype Device 1195 | -10/Mines | Core integrity fell below 20% 1566 | -10/Mines | Discovered new exit (range 6) 1573 | -10/Mines | Identified exit to Subcaves 1576 | -10/Mines | Entered Subcaves 1579 | -10/Subcaves | Learned location of Zion (-6) 1616 | -10/Subcaves | Discovered new exit (range 12) 1638 | -10/Subcaves | Destroyed by Autobeam Turret with Autobeam Last Messages --------------- 01505_ K-01 Serf collects debris. 01508_ YI-UF0 mumbles something. 01566_ EXIT=FOUND 01573_ EXIT=IDENTIFIED: SUBCAVES LOCATION=SUBCAVES AMBIENT_HEAT=-10 GOAL=ESCAPE 01579_ Acquired derelict log, extracted data. World map updated: -6/Zion. 01609_ Subatomizers dissect the Sub. Machine Gun. 01613_ S-10 Pest destroyed. 01616_ EXIT=FOUND 01622_ Subatomizers dissect the Sub. Machine Gun. 01623_ S-10 Pest destroyed. 01629_ Acquired 10 matter. 01633_ Machine disabled. 01636_ Flight Unit fries itself beyond repair. 01636_ Subatomizers dissect the Sub. Machine Gun. 01638_ Lgt. Assault Rifle fries itself beyond repair. 01638_ Lgt. Ion Engine fries itself beyond repair. Map ----- +----------------------------------------------------+ | ?????????????????????????????????????????????????? | | ?????????????????????????????????????????????????? | | ?????????????????????????????????????????????????? | | ?????????????????????????????????????????????????? | | ?????????????????????????????????????????????????? | | ?????????????????????????????????????????????????? | | ?????????????????????????????????????????????????? | | ?????????????????????????????????????????????????? | | ?????????????????????????????????????????????????? | | ?????????????????????????????????????????????????? | | ?????????????????????????????????????????????????? | | ?????????????????????????????????????????????????? | | ?????????????????????????????????????????????????? | | ?????????????????????????????????????????????????? | | ?????????????????????????????????????????????????? | | ?????????????????????????????????????????????????? | | ?????????????????????###########?????????????????? | | ????????????????????## ##????????????????? | | ????????????????????# #????????????????? | | ????????????????????### ###????????????????? | | ??????????????????????## ##??????????????????? | | ???????????????????????# ###???????????????????? | | ???????????????????????##%%%#????????????????????? | | ???????????????# ?????##&=#????????????????????? | | ???????????????# ## ]%##! #???????????????? | | ???????????????# t @*&[%& #???????????? | | ??????????????# < !&& #????????????? | | ??????????????# t % ## #????????????? | | ??????????????# ## ##? #????????????? | | ??????????????### ?# #??# ####????????????? | | ???????????????# """ ??###???####???????????????? | | ???????????????#######???????????????????????????? | | ?????????????????????????????????????????????????? | | ?????????????????????????????????????????????????? | | ?????????????????????????????????????????????????? | | ?????????????????????????????????????????????????? | | ?????????????????????????????????????????????????? | | ?????????????????????????????????????????????????? | | ?????????????????????????????????????????????????? | | ?????????????????????????????????????????????????? | | ?????????????????????????????????????????????????? | | ?????????????????????????????????????????????????? | | ?????????????????????????????????????????????????? | | ?????????????????????????????????????????????????? | | ?????????????????????????????????????????????????? | | ?????????????????????????????????????????????????? | | ?????????????????????????????????????????????????? | | ?????????????????????????????????????????????????? | | ?????????????????????????????????????????????????? | | ?????????????????????????????????????????????????? | +----------------------------------------------------+ Best States ------------- Heat Dissipation 25 Energy Generation 14 Energy Capacity 250 Matter Stores 300 Matter Capacity 300 Sight Range 16 Terrain Scan Density 10 Evasion (%) 55 Item Schematics ----------------- None Robot Schematics ------------------ None Fabricated ------------ Nothing Repaired ---------- Nothing Studied --------- None Alien Tech Used ----------------- None Achievements -------------- None Challenges ------------ None Game ------ Seed LightningDamperSheargun Manual? 0 Play Time 00:11:20 Cumulative 200.3 hours Start 2025.10.25 @ 20:17:08 End 2025.10.25 @ 20:27:39 Sessions 1 Manual Loads 0 Difficulty Rogue Special Mode None Game No. 237 Rogue 63 Adventurer 174 Explorer 0 Win Type - Total 1 Types 1/0/0/0/0/0/0/0/0/0 Lore% 46 Gallery% 57 Achievement% 35 Wizard Run 0 Options --------- Layout 0 ASCII 0 Keyboard 1 Movement Numpad Keybinds 0 Fullscreen 1 Font 18/Terminus Map View 76x50 Zoom Use 0% Tactical HUD 1 Map Filters NONE Filters NONE Steam 1 RUN: a3b38f1a-4fc0-487f-b9e9-a46c10478453